Cogmind - Beta 15 @@@ ROGUE MODE // 2025.06.03 @ 21:02:40 Player: Carpathian Result: Self-destructed Performance ------------- Evolutions (2) 1000 Regions Visited (6) 1200 Robots Destroyed (24) 120 Value Destroyed (604) 604 Prototype IDs (2) 40 Alien Tech Used (0) 0 Bonus (300) 300 TOTAL SCORE: 3264 Bonus ------- Aligned with FarCom 300 Cogmind --------- Core Integrity 440/550 Matter 153/300 Energy 265/265 System Corruption 2% Temperature Hot (234) Movement Walking (180) Ox1 Location -8/Materials Parts ------- > --- POWER (1) -------- Improved Ion Engine > --- PROPULSION (2) --- VSS Leg VSS Leg > --- UTILITY (6) ------ Large Storage Unit Modified TNC Targeting Computer Improved Light Armor Plating Hacking Suite > --- WEAPON (2) ------- Heavy Laser Heavy Laser > --- INVENTORY (15) --- Advanced Treads Advanced Treads Improved Weapon Shielding Faulty Advanced EMP Blaster Improved Datajack Deploy-a-Sentry Peak State ------------ > --- POWER ------------ Improved Ion Engine > --- PROPULSION ------- VSS Leg VSS Leg > --- UTILITY ---------- Large Storage Unit Modified TNC Targeting Computer Improved Light Armor Plating Hacking Suite > --- WEAPON ----------- Heavy Laser Heavy Laser > --- INVENTORY -------- Advanced Treads Advanced Treads Advanced EMP Blaster Improved Datajack Deploy-a-Sentry [Rating: 32] Favorites ----------- Power Improved Ion Engine Engine Improved Ion Engine Propulsion Aluminum Leg Treads Light Treads Leg Aluminum Leg Utility Targeting Computer Storage Small Storage Unit Processor Targeting Computer Hackware Hacking Suite Protection Medium Armor Plating Weapon Light Cannon Energy Gun Heavy Laser Energy Cannon Guided Plasma Cannon Ballistic Gun Heavy Assault Rifle Ballistic Cannon Light Cannon Special Melee Weapon Improved Datajack Build | -11 -10 -9 -9 -9 -8 -8 ------- Run | Yrd Mat Mat Min Exi Min Mat Slots Evolved 4 | . . 2 . . . 2 Power . | . . . . . . . Propulsion . | . . . . . . . Utility 4 | . . 2 . . . 2 Weapon . | . . . . . . . Parts Attached 30 | 6 2 7 . 2 1 12 Power 4 | 1 1 1 . . . 1 Engine 4 | 1 1 1 . . . 1 Core . | . . . . . . . Reactor . | . . . . . . . Propulsion 8 | 2 . 3 . . . 3 Treads 2 | 2 . . . . . . Leg 6 | . . 3 . . . 3 Wheel . | . . . . . . . Hover . | . . . . . . . Flight . | . . . . . . . Utility 7 | 1 1 1 . 1 . 3 Device . | . . . . . . . Storage 2 | 1 . . . . . 1 Processor 2 | . 1 . . 1 . . Hackware 1 | . . . . . . 1 Protection 2 | . . 1 . . . 1 Artifact . | . . . . . . . Weapon 11 | 2 . 2 . 1 1 5 Energy Gun 3 | 1 . . . . . 2 Energy Cannon 1 | . . . . 1 . . Ballistic Gun 4 | 1 . 1 . . 1 1 Ballistic Cannon 2 | . . 1 . . . 1 Launcher . | . . . . . . . Special Weapon . | . . . . . . . Impact Weapon . | . . . . . . . Slashing Weapon . | . . . . . . . Piercing Weapon . | . . . . . . . Special Melee Weapon 1 | . . . . . . 1 Unidentified Prototypes 2 | . . . . 2 . . Parts Lost 1 | . . . . . 1 . Power . | . . . . . . . Propulsion . | . . . . . . . Utility 1 | . . . . . 1 . Weapon . | . . . . . . . Highest Loss Streak 1 | . . . . . 1 . To Critical Strikes . | . . . . . . . Average Backups 4 | 2 3 3 4 6 7 4 Power . | . . . 1 1 1 . Propulsion . | 1 2 . . . . . Utility . | . . . . . . . Weapon 3 | . 1 3 3 5 6 2 Tool/Special . | . . . . . . . Unused Backups 7 | . . 1 . . . 6 Power . | . . . . . . . Propulsion 2 | . . . . . . 2 Utility 1 | . . . . . . 1 Weapon 4 | . . 1 . . . 3 Tool/Special . | . . . . . . . Average Slot Usage (%) 89 | . 89 86 88 92 97 86 Engine 10 | . 14 11 11 11 11 9 Treads 2 | . 27 2 . . . . Leg 18 | . . 19 22 22 22 18 Storage 10 | . 14 11 11 11 11 9 Processor 15 | . 5 11 11 15 22 18 Hackware 2 | . . . . . . 7 Protection 8 | . . 9 11 11 8 7 Energy Gun 6 | . 13 10 . . . 9 Energy Cannon 1 | . . . . 4 8 . Ballistic Gun 5 | . 14 5 11 6 2 3 Ballistic Cannon 7 | . . 6 11 11 11 4 Peak Build Rating 32 | 6 7 13 13 26 26 32 Average Rating 18 | 5 6 9 12 17 23 28 On Entrance 11 | . 6 7 12 13 26 18 Naked Turns . | . . . . . . . Heaviest Build 38 | 14 14 25 25 32 32 38 Greatest Support 40 | 40 40 40 23 23 23 30 Greatest Overweight (x) 1 | . . 1 1 1 1 1 Average Overweight (x) . | . . . 1 1 . . Largest Inventory Capacity 15 | 8 8 8 8 8 8 15 Average Capacity 9 | 7 8 8 8 8 8 11 Most Carried 8 | 4 6 6 6 8 8 8 Average Carried 5 | 2 3 3 4 6 8 5 Final Capacity 15 | 8 8 8 8 8 8 15 Final Carried 8 | 4 4 4 6 8 8 6 Class Distribution -------------------- 100% | Mutant Dominant Class ---------------- Mutant | -10/Materials Mutant | -9/Materials Mutant | -9/Mines Mutant | -9/Exiles Mutant | -8/Mines Mutant | -8/Materials Resources | -11 -10 -9 -9 -9 -8 -8 ----------- Run | Yrd Mat Mat Min Exi Min Mat Matter Collected 715 | 203 100 173 31 . 37 171 Remotely . | . . . . . . . Salvage Created 801 | . 115 434 . . 37 215 Parts 32 | . 4 19 . . 1 8 Haulers Intercepted 1 | . . . . . . 1 Recyclers Shooed 4 | . . 4 . . . . Parts Field Recycled . | . . . . . . . Retrieved Matter . | . . . . . . . Parts Self-Destructed . | . . . . . . . Prevented . | . . . . . . . Kills | -11 -10 -9 -9 -9 -8 -8 ------- Run | Yrd Mat Mat Min Exi Min Mat Combat Hostiles Destroyed 19 | . 3 6 . . 3 7 Guns 15 | . 3 4 . . 2 6 Cannons 4 | . . 2 . . 1 1 Classes Destroyed 6 | . 1 2 . . 1 2 Hauler 1 | . . . . . . 1 Recycler 3 | . . 3 . . . . Operator 1 | . . . . . . 1 Swarmer 7 | . . . . . 3 4 Grunt 9 | . 3 3 . . . 3 Sentry 3 | . . 3 . . . . Best Kill Streak 4 | . 2 2 . . 3 4 Combat Bots Only 3 | . 2 2 . . 3 3 Max Kills in Single Turn 1 | . 1 1 . . 1 1 Gunslinging . | . . . . . . . Exploded . | . . . . . . . Melee . | . . . . . . . Uniques/NPCs Destroyed . | . . . . . . . Combat | -11 -10 -9 -9 -9 -8 -8 -------- Run | Yrd Mat Mat Min Exi Min Mat Hostile Shots Fired 171 | . 21 43 . . 16 91 Missed 61 | . 3 15 . . 4 39 Hits 110 | . 18 28 . . 12 52 Projectile 110 | . 18 28 . . 12 52 Critical Strikes 1 | . . . . . . 1 Damage Taken 1386 | . 199 379 . . 104 704 Core 220 | . 23 62 . . 25 110 Absorbed by Shields . | . . . . . . . Core Remaining (%) 89 | 100 90 . . . 78 . Volleys Fired 87 | . 11 27 . . 11 38 Largest 2 | . 2 2 . . 2 2 Hottest 138 | . 70 80 . . 120 138 Shots Fired 164 | . 22 54 . . 14 74 Gun 106 | . 22 40 . . 3 41 Cannon 58 | . . 14 . . 11 33 Launcher . | . . . . . . . Special . | . . . . . . . Kinetic 96 | . 11 30 . . 9 46 Thermal 68 | . 11 24 . . 5 28 Explosive . | . . . . . . . Electromagnetic . | . . . . . . . Robot Hit Streak 8 | . 7 8 . . 8 5 Robot Miss Streak 5 | . 3 3 . . 1 5 Penetration Max . | . . . . . . . Secondary Targets 2 | . . 1 . . . 1 Max Gunslinging Chain 1 | . . 1 . . . 1 Shots Hit Robots 100 | . 14 35 . . 10 41 Core Hits 38 | . 6 14 . . 3 15 Critical Kills . | . . . . . . . Critical Parts Destroyed 1 | . . . . . . 1 Critical Strikes 6 | . 1 4 . . . 1 Burn 5 | . 1 4 . . . . Destroy 1 | . . . . . . 1 Melee Attacks . | . . . . . . . Impact . | . . . . . . . Slashing . | . . . . . . . Piercing . | . . . . . . . Sneak Attacks . | . . . . . . . Combat Hostiles . | . . . . . . . Follow-up Attacks . | . . . . . . . Damage Inflicted 1779 | . 175 511 . . 285 808 Guns 981 | . 175 284 . . 53 469 Cannons 798 | . . 227 . . 232 339 Explosions . | . . . . . . . Melee . | . . . . . . . Ramming . | . . . . . . . Kinetic 1041 | . 112 371 . . 92 466 Thermal 738 | . 63 140 . . 193 342 Explosive . | . . . . . . . Electromagnetic . | . . . . . . . Impact . | . . . . . . . Slashing . | . . . . . . . Piercing . | . . . . . . . Highest Corruption 2 | . . . . . . 2 Average Corruption 2 | . . . . . . 2 Corruption Purged . | . . . . . . . Corruption Blocked . | . . . . . . . Effects 1 | . . . . . . 1 Message Errors 1 | . . . . . . 1 Overload Shots . | . . . . . . . Overflow Damage 38 | . . . . . 37 1 Projectiles 38 | . . . . . 37 1 Explosions . | . . . . . . . Melee . | . . . . . . . Knockbacks 7 | . . 1 . . 2 4 Impact . | . . . . . . . Kinetic 7 | . . 1 . . 2 4 Secondary . | . . . . . . . Self-Inflicted Damage . | . . . . . . . Shots . | . . . . . . . Rammed . | . . . . . . . Targets Rammed . | . . . . . . . Kicked . | . . . . . . . Crushed . | . . . . . . . Highest Temperature 410 | . 159 105 . . 410 276 Average Temperature 93 | . 75 30 . . 244 99 Received Heat Transfer 528 | . 108 105 . . . 315 Effects 5 | . . . . . 5 . Shutdowns 1 | . . . . . 1 . Energy Bleed 1 | . . . . . 1 . Interference 1 | . . . . . 1 . Damage (minor) 2 | . . . . . 2 . Siege Activations . | . . . . . . . Martial Activations . | . . . . . . . Shielding Activations . | . . . . . . . Robots Disrupted . | . . . . . . . Combat Hostiles . | . . . . . . . Robots Corrupted . | . . . . . . . Combat Hostiles . | . . . . . . . Parts Fried . | . . . . . . . Impact Corruptions . | . . . . . . . Robots Melted . | . . . . . . . Combat Hostiles . | . . . . . . . Parts Melted 4 | . . 2 . . . 2 Heat Transferred 2028 | . 259 703 . . 400 666 Parts Sabotaged . | . . . . . . . Parts Stolen . | . . . . . . . Parts Stripped . | . . . . . . . Power Chain Reactions . | . . . . . . . Alert | -11 -10 -9 -9 -9 -8 -8 ------- Run | Yrd Mat Mat Min Exi Min Mat Maximum Alert Level . | . . . . . . . Low Security (%) 100 | 100 100 100 100 . 100 100 Level 1 . | . . . . . . . Level 2 . | . . . . . . . Level 3 . | . . . . . . . Level 4 . | . . . . . . . Level 5 . | . . . . . . . High Security . | . . . . . . . Max Security . | . . . . . . . Peak Influence 101 | . 51 101 23 . 65 89 Initial 23 | . . . 23 . . 9 Average 22 | . 17 48 3 . 11 21 Influence Increases 618 | . 71 231 . . 85 231 Destroy 0b10 Robot/C 380 | . 60 120 . . 60 140 Destroy 0b10 Robot/NC 25 | . . 15 . . . 10 Destroy Leader 92 | . 10 50 . . 10 22 Successful Hack 30 | . . 16 . . . 14 Disable Machine 15 | . . . . . . 15 Destroy Structure 1 | . 1 . . . . . Lose Combat Pursuer 75 | . . 30 . . 15 30 Influence Decreases 608 | . 71 170 61 . 60 246 Entered New Map 54 | . . . 38 . . 16 Time Decay 544 | . 71 170 23 . 50 230 Lost Part 10 | . . . . . 10 . Squads Dispatched 11 | . 3 2 . . . 6 Investigation 5 | . 1 2 . . . 2 Extermination . | . . . . . . . Reinforcement 5 | . 2 . . . . 3 Assault . | . . . . . . . Garrison 1 | . . . . . . 1 Intercept . | . . . . . . . Searches Triggered . | . . . . . . . Construction Impeded . | . . . . . . . Haulers Reinforced . | . . . . . . . Active Scanning Responses . | . . . . . . . Cargo Convoy Interrupts . | . . . . . . . Stealth | -11 -10 -9 -9 -9 -8 -8 --------- Run | Yrd Mat Mat Min Exi Min Mat Distress Signals 3 | . 1 . . . . 2 Communications Jammed . | . . . . . . . Distress Signals . | . . . . . . . Times Spotted 29 | . 3 7 . . 4 15 Peak Tracking Total 4 | . 2 3 . . 3 4 Tactical Retreats 5 | . . 2 . . 1 2 Traps | -11 -10 -9 -9 -9 -8 -8 ------- Run | Yrd Mat Mat Min Exi Min Mat Traps Triggered 2 | . 1 . . . . 1 Indirectly . | . . . . . . . Trap Hack Attempts . | . . . . . . . Triggered . | . . . . . . . Disarmed . | . . . . . . . Reprogrammed . | . . . . . . . Reused . | . . . . . . . Traps Extracted . | . . . . . . . Installed . | . . . . . . . Triggered . | . . . . . . . Machines | -11 -10 -9 -9 -9 -8 -8 ---------- Run | Yrd Mat Mat Min Exi Min Mat Machines Disabled 1 | . . . . . . 1 Max in Single Turn 1 | . . . . . . 1 Machines Repaired . | . . . . . . . Machines Dismantled . | . . . . . . . Machines Sabotaged . | . . . . . . . Overloaded Fab Kills . | . . . . . . . Hacking | -11 -10 -9 -9 -9 -8 -8 --------- Run | Yrd Mat Mat Min Exi Min Mat Machines Accessed 8 | . 1 2 . 2 . 3 Terminals 6 | . 1 2 . . . 3 Fabricators . | . . . . . . . Repair Stations . | . . . . . . . Recycling Units . | . . . . . . . Scanalyzers . | . . . . . . . Garrison Access . | . . . . . . . Total Hacks 36 | . 2 5 . 19 . 10 Successful 26 | . 2 1 . 19 . 4 Failed 10 | . . 4 . . . 6 Catastrophic 3 | . . 1 . . . 2 Database Lockouts . | . . . . . . . Manual 2 | . . . . 2 . . Terminals 17 | . 2 5 . . . 10 Fabricators . | . . . . . . . Repair Stations . | . . . . . . . Recycling Units . | . . . . . . . Scanalyzers . | . . . . . . . Garrison Access . | . . . . . . . Terminal Hacks 26 | . 2 1 . 19 . 4 Record 24 | . 1 . . 19 . 4 Robot Analysis 1 | . . 1 . . . . Dispatch Records 1 | . 1 . . . . . Fabricator Hacks . | . . . . . . . Repair Station Hacks . | . . . . . . . Recycling Unit Hacks . | . . . . . . . Scanalyzer . | . . . . . . . Garrison Access Hacks . | . . . . . . . Unauthorized Hacks . | . . . . . . . Terminals . | . . . . . . . Fabricators . | . . . . . . . Repair Stations . | . . . . . . . Recycling Units . | . . . . . . . Scanalyzers . | . . . . . . . Garrison Access . | . . . . . . . Data Cores Recovered . | . . . . . . . Used . | . . . . . . . Hacking Detections 5 | . . 2 . . . 3 Full Trace Events 5 | . . 2 . . . 3 Feedback Events . | . . . . . . . Feedback Blocked . | . . . . . . . Robot Schematics Acquired . | . . . . . . . Robots Built . | . . . . . . . Authchips . | . . . . . . . Time . | . . . . . . . Total Robot Build Rating . | . . . . . . . Part Schematics Acquired . | . . . . . . . Parts Built . | . . . . . . . Authchips . | . . . . . . . Time . | . . . . . . . Total Part Build Rating . | . . . . . . . Parts Repaired . | . . . . . . . Time . | . . . . . . . Parts Recycled . | . . . . . . . Recycled Matter . | . . . . . . . Retrieved Matter . | . . . . . . . Retrieved Components . | . . . . . . . Parts Scanalyzed . | . . . . . . . Part Schematics Acquired . | . . . . . . . Parts Damaged . | . . . . . . . Bothacking | -11 -10 -9 -9 -9 -8 -8 ------------ Run | Yrd Mat Mat Min Exi Min Mat Used RIF Installer . | . . . . . . . Robots Hacked . | . . . . . . . Non-combat . | . . . . . . . Combat . | . . . . . . . Robot Hacks Applied . | . . . . . . . Relay Couplers Released . | . . . . . . . Fabnet Peak Effective % . | . . . . . . . Robots Rewired . | . . . . . . . Allies Hacked . | . . . . . . . Hacks Repelled . | . . . . . . . Allies | -11 -10 -9 -9 -9 -8 -8 -------- Run | Yrd Mat Mat Min Exi Min Mat Total Allies . | . . . . . . . Largest Group . | . . . . . . . Highest-Rated Group . | . . . . . . . Highest-Rated Ally . | . . . . . . . Total Orders . | . . . . . . . Ally Attacks . | . . . . . . . Total Damage . | . . . . . . . Kills . | . . . . . . . Allies Corrupted . | . . . . . . . Allies Melted . | . . . . . . . Intel | -11 -10 -9 -9 -9 -8 -8 ------- Run | Yrd Mat Mat Min Exi Min Mat Active Infowar (turns) 1414 | . . . . 198 318 898 T.N.C. 1414 | . . . . 198 318 898 Robot Analysis Total 1 | . . 1 . . . . Derelict Logs Recovered 1 | . . . 1 . . . Drone Launches . | . . . . . . . Drone Recoveries . | . . . . . . . Exploration | -11 -10 -9 -9 -9 -8 -8 ------------- Run | Yrd Mat Mat Min Exi Min Mat Turns Passed 2775 | 94 204 489 251 502 337 898 Spaces Moved 1454 | 54 102 264 132 262 182 458 Core 7 | 7 . . . . . . Treads 175 | 47 102 26 . . . . Legs 1272 | . . 238 132 262 182 458 Wheels . | . . . . . . . Hover . | . . . . . . . Flight . | . . . . . . . Fastest Speed 50 | 50 160 120 190 190 120 110 Average Speed 158 | 145 160 140 190 190 165 138 Slowest Speed 190 | 160 160 190 190 190 190 180 Overloaded Moves . | . . . . . . . Propulsion Burnouts . | . . . . . . . Robots Hopped . | . . . . . . . Potential Cave-ins . | . . . . . . . Cave-ins Triggered . | . . . . . . . Exploration Rate (%) 33 | 4 19 23 42 63 57 29 Regions Visited 6 Branch Regions 3 Pre-discovered Areas . | . . . . . . . Known Exits Taken . | . . . . . . . Unknown Exits Taken 6 | 1 1 1 1 1 1 . Scrap Searched 1 | . . . 1 . . . Spaces Dug . | . . . . . . . Terrain Destroyed . | . . . . . . . Melee . | . . . . . . . Projectile . | . . . . . . . AOE . | . . . . . . . Terrain Rammed . | . . . . . . . Walls Destroyed . | . . . . . . . Machines Disabled . | . . . . . . . Actions | -11 -10 -9 -9 -9 -8 -8 --------- Run | Yrd Mat Mat Min Exi Min Mat Total 1770 | 69 121 329 133 266 203 649 Wait 143 | . . 17 . . 10 116 Move 1448 | 53 101 263 131 261 181 458 Hop . | . . . . . . . Pick Up 39 | 10 4 8 2 3 . 12 Fast Attach . | . . . . . . . Attach 13 | 6 3 1 . 1 . 2 Detach . | . . . . . . . Swap 19 | . 1 6 . 1 1 10 Drop 21 | . 1 7 . . . 13 Fire 87 | . 11 27 . . 11 38 Melee . | . . . . . . . Ram . | . . . . . . . Kick . | . . . . . . . Crush . | . . . . . . . Escape Stasis . | . . . . . . . Rewire . | . . . . . . . Trap . | . . . . . . . Miscellaneous . | . . . . . . . Route ------- -11/Scrapyard -10/Materials -9/Materials -9/Mines -9/Exiles -8/Mines -8/Materials History --------- Turn | Location | Event 15 | -11/Scrapyard | Discovered new exit (range 16) 95 | -11/Scrapyard | Entered Materials 96 | -10/Materials | Met a group of wandering Federalists 241 | -10/Materials | Discovered new exit (range 10) 299 | -10/Materials | Entered another Materials area 299 | -9/Materials | Evolved 2 slots: Utility x2 300 | -9/Materials | Build established: Mutant 766 | -9/Materials | Discovered new exit (range 7) 788 | -9/Materials | Entered Mines 927 | -9/Mines | Learned location of 1 exit from Lower Caves 942 | -9/Mines | Found DCF Scrap (13 items) 1028 | -9/Mines | Deemed a non-threat by the Exiles lab entrance 1030 | -9/Mines | Discovered new exit (range 5) 1039 | -9/Mines | Entered Exiles 1087 | -9/Exiles | Met 8R-AWN 1119 | -9/Exiles | Met EX-HEX 1186 | -9/Exiles | Met EX-BIN 1212 | -9/Exiles | Aligned with FarCom system 1214 | -9/Exiles | Given EX-Vault access code 1332 | -9/Exiles | Opened EX-Vault 1342 | -9/Exiles | Found Prototype Processor 1343 | -9/Exiles | Identified Modified TNC 1351 | -9/Exiles | Found Prototype Energy Cannon 1352 | -9/Exiles | Identified Gui. Plasma Cannon 1363 | -9/Exiles | Found Deploy-a-Sentry 1402 | -9/Exiles | Warned to stay clear of 0b10 Research branches 1453 | -9/Exiles | Met EX-DEC 1522 | -9/Exiles | Discovered new exit (range 12) 1541 | -9/Exiles | Stole three prototypes: Gui. Plasma Cannon, Modified TNC, Deploy-a-Sentry 1541 | -9/Exiles | Entered Mines 1866 | -8/Mines | Discovered new exit (range 6) 1878 | -8/Mines | Entered Materials 1878 | -8/Materials | Evolved 2 slots: Utility x2 2770 | -8/Materials | Garrison activated, responded to threat 2776 | -8/Materials | Self-destructed Last Messages --------------- 02538_ Acquired Imp. Weapon Shielding. 02562_ ALERT: Hostiles spotted, dispatching reinforcements to Terminal M009. 02723_ Triggered Shock Trap. 02723_ The floor emits a surge of raw power. 02723_ System corrupted (+2). 02730_ 5&F&MW VHEUJVP,ZTC 6NPDYO H 02735_ U-05 Engineer lays Concrete. 02735_ Material Processor disabled. 02741_ A-02 Transporter destroyed. 02758_ W-25 Informer sends out distress signal. 02765_ ALERT: Suspicious intruders detected, dispatching Specialist reinforcements to area. 02770_ K-01 Serf collects debris. 02770_ G-47 Trooper calls for garrison reinforcements. 02770_ ALERT: Activating Garrison Access M001. 02772_ Slug penetrates Wall. 02772_ Terminal disabled. 02774_ K-01 Serf collects debris. 02775_ Penetrated by Slug. Map ----- +----------------------------------------------------+ | ???????????????????????????????????????? | | ???????????????????????????????????????? | | ???????????????????????????????????????? | | ???????????????????????????????????????? | | ???????????????????????????????????????? | | ???????????????????????????????????????? | | ???????????????????????????????????????? | | ???????????????????????????????????????? | | ???????????????????????????????????????? | | ???????????????????????????????????????? | | ???????????????????????????????????????? | | ???????????????????????????????????????? | | ????????????????????H??????????????????? | | ???????????????????????????????????????? | | ???????????????????????????????????????? | | ???????????????????????????????????????? | | ???????????????????????####????????????? | | ?????????????????????? **#????????????? | | ?????????????????????? **#????????????? | | ?????????????????g??? !!#????????????? | | ????????????????????? !!#????????????? | | ???????????????????? [[?????????????? | | ???????????????????? ???????????????? | | ??????????????????? #????????????????? | | ????????########### #????????????????? | | ????????# @ g #????????????????? | | ????????# """ # h% ?????????? | | ????????# """""] # k a????? | | ????????# """""]! #? ??????? | | ????????# """""%]!#? ###########+??????? | | ????????# "" ]]] ##w#?????????????????? | | ????????# =! ## #?????????????????? | | ????????# ## ###???????????????? | | ????????#######+#### +???????????????? | | ????????????### #??# #????????????????? | | ????????????# #### #????????????????? | | ????????????#^ b #??######????????? | | ????######### ^ l +?? ! #????????? | | ???? # ""x #? #???????? | | ????""" """ # "G #? +?? ????? | | ??# """ "Y" # "" # #?? ????? | | ??# """ + x # #?? ?????? | | ??# / # + #?? ?????? | | ??# # # +?? ?????? | | ??# = ## ##### # #?# ?????? | | ??# ! ## #???# #? #?# ?????? | | ??############ #???# #? #?# #????? | | ?????????????# #???# #?? #?# #????? | | ??????######## #???# #??######?# #????? | | ??????# ! # #####+##????????# #????? | +----------------------------------------------------+ Best States ------------- Heat Dissipation 31 Energy Generation 12 Energy Capacity 265 Matter Stores 300 Matter Capacity 300 Sight Range 16 Terrain Scan Density 10 Armor Coverage 225 Evasion (%) 55 Targeting Accuracy 5 Recoil Reduction 2 Offensive Hacking 10 Item Schematics ----------------- None Robot Schematics ------------------ None Fabricated ------------ Nothing Repaired ---------- Nothing Alien Tech Used ----------------- None Achievements -------------- None Challenges ------------ None Game ------ Seed ForceLayeredMultitool Manual? 0 Play Time 00:15:58 Cumulative 29.3 hours Start 2025.06.03 @ 20:47:03 End 2025.06.03 @ 21:02:40 Sessions 1 Manual Loads 0 Difficulty Rogue Special Mode None Game No. 164 Rogue 164 Adventurer 0 Explorer 0 Win Type - Total 0 Types 0/0/0/0/0/0/0/0/0/0 Lore% 7 Gallery% 22 Achievement% 18 Wizard Run 0 Options --------- Layout 0 ASCII 0 Keyboard 0 Movement Arrows Keybinds 0 Fullscreen 2 Font 24/Cog Map View 76x50 Zoom Use 0% Tactical HUD 1 Map Filters NONE Filters NONE Steam 1 RUN: 399a7358-11cd-4aa7-9368-8955c1f92555